{"text_format":"1","workbook":"xlsx","n_sheets":6,"sheets":["Лист1","Лист2","Лист3","ПУТ","Лицевая_сторона_Спец","ИД"],"not_rendered":{"charts":0,"images":0,"macros":1,"external_links":0,"defined_names":7,"comments":0,"pivot_tables":0},"unopened":[],"bounds":{"document_bytes":16777216,"sheet_cells":100000,"rows_first":2000,"rows_last":500,"rows_between":2000,"halvings":0,"cell_chars":16384,"cell_head_chars":4096},"cells_cut":0,"cells_raw":0,"read":"whole","date_system":"1900"}

{"sheet":"Лист1","index":0,"n_rows":32,"n_cols":59,"rows_kept":32,"cut":false,"hidden":true,"merged":[[20,46,20,57],[20,58,20,65],[21,46,21,65],[22,46,22,57],[22,58,22,65],[17,51,17,57],[17,58,17,65],[19,46,19,57],[19,58,19,65],[18,46,18,65],[12,52,12,57],[13,46,13,51],[13,52,13,57],[12,58,12,65],[13,58,13,65],[6,1,6,7],[6,29,6,50],[5,29,5,50],[17,1,17,18],[13,19,13,31],[14,19,14,31],[15,19,15,31],[16,19,16,31],[17,19,17,31],[12,46,12,51],[15,46,15,65],[16,46,16,50],[16,51,16,57],[16,58,16,65],[17,46,17,50],[14,1,14,18],[12,32,12,44],[12,1,12,18],[18,1,18,18],[15,1,15,18],[16,1,16,18],[13,1,13,18],[12,19,12,31],[18,19,18,31],[13,32,13,44],[14,32,14,44],[15,32,15,44],[16,32,16,44],[17,32,17,44],[18,32,18,44]]}
[null,null,null,null,null,null,null,null,null,null,null,null,null,null,null,null,null,"ПУТЕВОЙ ЛИСТ ТРАНСПОРТОНОГО СРЕДСТВА №___________"]
[null,null,null,null,null,null,null,null,null,null,null,null,null,null,null,null,null,null,null,null,null,null,null,null,null,null,null,null,null,"2017 г."]
[null,null,null,null,null,null,null,null,null,null,null,null,null,null,null,null,null,null,null,null,null,null,null,"дата"]
[null,null,null,null,null,"Организация АО \"АНПЗ ВНК\", Большеулуйский район, Промзона НПЗ, 5-34-82"]
[null,null,null,null,null,null,null,null,null,null,null,null,null,null,null,null,null,null,null,null,null,null,null,"наименование, адрес, номер телефона"]
[null,"Марка ТС",null,null,null,null,null,null,null,null,null,null,null,null,null,null,null,null,null,null,null,null,null,null,null,null,null,null,null," Государственный номерной знак"]
[null,"Прицеп",null,null,null,null,null,null,null,null,null,null,null,null,null,null,null,null,null,null,null,null,null,null,null,null,null,null,null," Государственный номерной знак"]
[]
[null,"Водитель"]
[null,null,null,null,null,null,null,null,null,null,null,null,null,null,null,null,null,null,"Фамилия, имя, отчество"]
[null,"Удостоверение №"]
[]
[null,"Работа водителя и ТС",null,null,null,null,null,null,null,null,null,null,null,null,null,null,null,null,null,"Выезд из гаража",null,null,null,null,null,null,null,null,null,null,null,null,"Возвращение в гараж",null,null,null,null,null,null,null,null,null,null,null,null,null,"Горючее марка",null,null,null,null,null,"Выдано л",null,null,null,null,null,"подпись заправщика"]
[null,"время по графику, ч.мин."]
[null,"Время, фактическое число, месяц, ч.мин."]
[null,"Показания спидометра",null,null,null,null,null,null,null,null,null,null,null,null,null,null,null,null,null,null,null,null,null,null,null,null,null,null,null,null,null,null,null,null,null,null,null,null,null,null,null,null,null,null,null,null,"Расход горючего л"]
[null,"Моточасы",null,null,null,null,null,null,null,null,null,null,null,null,null,null,null,null,null,null,null,null,null,null,null,null,null,null,null,null,null,null,null,null,null,null,null,null,null,null,null,null,null,null,null,null,"марка",null,null,null,null,"по норме",null,null,null,null,null,null,"фактическое"]
[null,"Горючее"]
[null,"Прошел предрейсовый контроль Технического состояния. Механик:",null,null,null,null,null,null,null,null,null,null,null,null,null,null,null,null,null,null,null,null,null,null,null,null,null,null,null,null,null,null,null,null,null,null,null,null,null,null,null,null,null,null,null,null,"время работы, ч."]
[null,null,null,null,null,null,null,null,null,null,null,null,null,null,null,null,null,null,null,null,null,null,null,null,null,null,null,null,null,null,null,null,null,null,null,null,null,null,null,null,null,null,null,null,null,null,"спецоборудование",null,null,null,null,null,null,null,null,null,null,null,"двигателя"]
[null,"Автомобиль принял. Водитель"]
[null,null,null,null,null,null,null,null,null,null,null,null,null,null,null,null,null,null,null,null,null,null,null,"подпись",null,null,null,null,null,null,"расшифровка",null,null,null,null,null,null,null,null,null,null,null,null,null,null,null,"диспетчер"]
[null,"Водительское удостоверение проверил, "]
[null,"задание выдал, выдать горючее",null,null,null,null,null,null,null,null,null,null,null,null,null,null,null,null,null,null,null,null,null,null,null,null,null,null,null,null,null,null,null,null,null,null,null,null,null,null,null,"литров"]
[null,"Диспетчер "]
[null,null,null,null,null,null,null,null,null,"подпись",null,null,null,null,null,null,null,null,null,null,null,null,null,null,null,"расшифровка подписи"]
[]
[null,"Водитель по состоянию здоровья"]
[null,"к управлению допущен"]
[null,null,null,null,null,null,null,null,null,null,null,null,null,null,null,null,"должность",null,null,null,null,null,null,"подпись",null,null,null,null,null,null,"расшифровка"]
[null,"Сдал водитель"]
[null,null,null,null,null,null,null,null,null,null,null,null,null,null,null,"подпись",null,null,null,null,null,null,null,null,"расшифровка"]

{"sheet":"Лист2","index":1,"n_rows":45,"n_cols":8,"rows_kept":45,"cut":false,"hidden":true,"merged":[[26,1,27,1],[26,0,27,0],[26,2,26,3],[19,1,19,3],[19,0,21,0],[20,1,21,1],[20,2,21,2],[20,3,21,3],[11,1,11,4],[11,0,12,0],[11,5,12,5],[11,6,12,6],[11,7,12,7]]}
[null,null,null,"ПУТЕВОЙ ЛИСТ  №____________"]
[null,null,null,null,null,null,"20           г."]
[]
["Организация   АО \"АНПЗ ВНК\", Большеулуйский район, промзона НПЗ, 5-34-82"]
["Автомобиль"]
["Гос. Номер"]
["Удостоверение №",null,null,null,"табельный номер"]
["Прицеп",null,null,null,"гос.номер"]
[]
[null,"Работа водителя и автомобиля"]
[]
["Операция","Время по графику",null,null,null,"Показания одометра","Время фактическое, чис.,мес., ч., м.,","Подпись ответственного лица"]
[null,"число","месяц","часы","минуты"]
[1,2,3,4,5,6,7,8]
["Выезд с парковки"]
["Возврвщение на парковку "]
[]
[null,"Задание водителю"]
[]
["В чье распоряжение (наименование и адрес заказчика)","Время, час, мин.",null,null,null,"Особые отметки_________________"]
[null,"прибытие","убытие","кол-во часов"]
[]
[9,10,11,12]
["АО \"АНПЗ ВНК\""]
[]
[null,"Движение горючего",null,null,null,"Водитель по состояния здоровья к"]
["марка топлива","выдано,л","остаток при",null,null,"управлению допущен"]
[null,null,"выезде,л","возвращении,л"]
[13,14,15,16]
[]
[]
["Водительское удостоверение проверил, задание выдал"]
["Диспетчер"]
[]
["Контроль технического состояния транспортного средства пройден"]
["дата","время"]
["Выезд разрешен. Контролер"]
[null,null,"(подпись)",null,"(расшифровка подписи)"]
["Автомобиль принял. Водитель"]
[null,null,"(подпись)",null,"(расшифровка подписи)"]
["При возвращении автомобиль"]
["Сдал. Водитель"]
[null,null,"(подпись)",null,"(расшифровка подписи)"]
["Принял. Контролер"]
[null,null,"(подпись)",null,"(расшифровка подписи)"]

{"sheet":"Лист3","index":2,"n_rows":41,"n_cols":6,"rows_kept":41,"cut":false,"hidden":true,"merged":[[17,1,17,4],[25,1,25,4],[26,1,26,4],[27,1,27,4],[28,1,28,4],[19,1,19,4],[20,1,20,4],[21,1,21,4],[22,1,22,4],[23,1,23,4],[24,1,24,4],[12,1,12,4],[13,1,13,4],[14,1,14,4],[15,1,15,4],[16,1,16,4],[0,1,0,4],[35,0,36,0],[35,1,36,1],[35,2,35,3],[1,1,1,4],[2,1,2,4],[3,1,3,4],[4,1,4,4],[5,1,5,4],[6,1,6,4],[18,1,18,4],[7,1,7,4],[8,1,8,4],[9,1,9,4],[10,1,10,4],[11,1,11,4]]}
["№ п/п","МАРШРУТ ДВИЖЕНИЯ",null,null,null,"Пройдено, км"]
[]
[]
[]
[]
[]
[]
[]
[]
[]
[]
[]
[]
[]
[]
[]
[]
[]
[]
[]
[]
[]
[]
[]
[]
[]
[]
[]
[]
[]
["Ответственный"]
[null,null,"           должност",null,"подпись","(расшифровка подписи)"]
[]
["Таксировка"]
[]
["время оплачиваемое","пробег","расход горючего"]
[null,null,"по норме","по факту"]
[]
[]
["Диспетчер"]
[null,null,"подпись",null,"(расшифровка подписи)"]

{"sheet":"ПУТ","index":3,"n_rows":65,"n_cols":21,"rows_kept":65,"cut":false,"hidden":true,"merged":[[58,18,59,20],[53,18,54,20],[55,18,55,20],[53,1,55,1],[24,11,25,17],[41,6,41,11],[42,6,42,11],[43,6,43,11],[52,1,52,10],[52,12,52,20],[26,4,27,5],[28,4,29,5],[43,4,43,5],[42,2,42,3],[43,2,43,3],[28,18,29,20],[40,2,40,5],[41,4,41,5],[60,16,60,17],[54,2,54,3],[53,5,54,6],[53,7,54,10],[54,13,54,14],[53,16,54,17],[53,12,55,12],[58,12,60,12],[58,7,59,10],[55,7,55,10],[53,2,53,3],[55,2,55,3],[59,13,59,14],[58,16,59,17],[42,4,42,5],[38,1,38,13],[40,12,40,13],[17,18,17,20],[6,1,6,15],[24,2,24,3],[24,18,25,20],[26,11,27,17],[26,18,27,20],[23,1,25,1],[19,3,19,5],[28,1,29,1],[40,1,41,1],[24,4,24,5],[25,4,25,5],[23,2,23,5],[1,1,4,11],[58,13,58,14],[60,13,60,14],[32,1,32,20],[33,1,33,20],[34,1,34,20],[59,2,59,3],[60,5,60,6],[58,2,58,3],[60,2,60,3],[57,1,57,10],[60,7,60,10],[58,5,59,6],[58,1,60,1],[60,18,60,20],[40,6,40,11],[63,12,63,13],[31,1,31,19],[20,2,20,13],[41,12,41,13],[42,12,42,13],[43,12,43,13],[57,12,57,20],[53,13,53,14],[40,17,40,19],[41,17,41,19],[26,2,27,3],[28,2,29,3],[55,16,55,17],[55,5,55,6],[63,1,63,2],[26,1,27,1],[53,21,53,22],[55,21,55,22],[55,13,55,14],[41,2,41,3],[18,2,18,13],[23,6,24,8],[26,6,27,8],[28,6,29,8],[23,9,24,10],[26,9,27,10],[28,9,29,10],[23,11,23,20],[25,2,25,3],[25,6,25,8],[25,9,25,10],[28,11,29,17]]}
[]
[null,"АКЦИОНЕРНОЕ ОБЩЕСТВО \"АЧИНСКИЙ НЕФТЕПЕРЕРАБАТЫВАЮЩИЙ ЗАВОД ВОСТОЧНОЙ НЕФТЯНОЙ КОМПАНИИ\" (АО \"АНПЗ ВНК\") Почтовый адрес: промзона НПЗ, Большеулуйский район, Красноярский край, Российская Федерация, 662110 место нахождения:Российская Федерация, Красноярский край, Большеулуйский район, промзона НПЗ Телефон: 8(39159) 5-33-10. факс: 8(39159) 5-37-10. e-mail: sekr@achnpz.ru ОКПО 05747206 ОГРН 1022401153532 ИНН/КПП 2443000518/997250001"]
[]
[]
[]
[]
[null,"Путевой лист легкового автомобиля                          ",null,null,null,null,null,null,null,null,null,null,null,null,null,null,null,"№",1000]
[]
[null,null,null,null,null,"«",1,"»","Января",null,null,null,20,19,"г."]
[]
[null,"Организация","АО «АНПЗ ВНК», Большеулуйский район, Промзона НПЗ 5-34-82"]
[null,"Тип транспортного средства",null,null,"Легковой"]
[null,"Модель транспортного средства",null,null,null,null,"Тойота Land Cruiser Prado"]
[null,"Государственный номер транспортного средства",null,null,null,null,null,"О111ОО-124"]
[null,"Тип модель прицепа, полуприцепа"]
[null,"Государственный номер прицепа, полуприцепа"]
[]
[null,"Водитель","Иванов Иван Иванович",null,null,null,null,null,null,null,null,null,null,null,null,"Табельный номер",null,null,1111111]
[null,null,"ФИО"]
[null,"№ Удостоверения",null,1124214]
[]
[null,"Работа водителя и автомобиля"]
[]
[null,null,"Время по графику",null,null,null,"Показания одометра",null,null,"Фактическое время",null,"Ответственное лицо"]
[null,null,"Дата",null,"Время ",null,null,null,null,null,null,"Инициалы и Фамилия",null,null,null,null,null,null,"Подпись"]
[null,null,"(Число, Месяц, Год)",null,"(Часы, минуты)",null,"(км)",null,null,"(Часы, минуты)"]
[null,"Выезд с парковки",null,null,"08:00:00"]
[]
[null,"Заезд на парковку",null,null,"17:00:00"]
[]
[]
[]
[null,"Задание водителю"]
[]
[]
[]
[null,"Особые отметки"]
[]
[null,"Движение горючего"]
[]
[null,"Марка ГСМ","Заправка, (л.)",null,null,null,"Остаток, (л.)",null,null,null,null,null,"Остаток, (л.)"]
[null,null,"ТЗП",null,"Наличные",null,"на начало",null,null,null,null,null," на конец"]
[]
[]
[]
[null,"Водительское удостоверение проверил, задание выдал, выдать горючего",null,null,null,null,null,null,null,null,null,null,null,null,null,null,null,null,null,null,"литров"]
[null,null,null,null,null,null,null,null,null,null,null,null,null,"прописью"]
[null,"Диспетчер автомобильного транспорта "]
[null,null,null,null,null,null,null,null,null,null,null,null,"Инициалы и Фамилия",null,null,null,null,null,"Подпись"]
[]
[]
[]
[null,"Проведение предрейсового медицинсокго осмотра водителя",null,null,null,null,null,null,null,null,null,null,"Проведение послерейсового медицинсокго осмотра водителя"]
[null,"Медицинский работник","Дата ",null,"Время","Подпись",null,"Инициалы и Фамилия",null,null,null,null,"Медицинский работник","Дата ",null,"Время","Подпись",null,"Инициалы и Фамилия"]
[null,null,"(Число, Месяц, Год)",null,"(Часы, минуты)",null,null,null,null,null,null,null,null,"(Число, Месяц, Год)",null,"(Часы, минуты)"]
[]
[]
[null,"Контроль предрейсового технического состояния транспортного средства пройден",null,null,null,null,null,null,null,null,null,null,"Контроль послерейсового технического состояния транспортного средства пройден"]
[null,"Контролер технического состояния транспорного средства","Дата ",null,"Время","Подпись",null,"Инициалы и Фамилия",null,null,null,null,"Контролер технического состояния транспорного средства","Дата ",null,"Время","Подпись",null,"Инициалы и Фамилия"]
[null,null,"(Число, Месяц, Год)",null,"(Часы, минуты)",null,null,null,null,null,null,null,null,"(Число, Месяц, Год)",null,"(Часы, минуты)"]
[]
[]
[]
[null,"Водитель принял транспортное средство",null,null,{"$f":"C18","v":"Иванов Иван Иванович"},null,null,null,null,null,null,null,"Водитель сдал транспортное средство",null,null,{"$f":"C18","v":"Иванов Иван Иванович"}]
[null,null,null,null,"Инициалы и Фамилия",null,null,null,null,"Подпись",null,null,null,null,null,"Инициалы и Фамилия",null,null,null,"Подпись"]

{"sheet":"Лицевая_сторона_Спец","index":4,"n_rows":65,"n_cols":28,"rows_kept":65,"cut":false,"hidden":false,"merged":[[2,12,4,18],[64,2,64,6],[64,13,64,17],[48,3,48,7],[39,1,39,4],[40,1,40,4],[41,1,41,4],[42,1,42,4],[43,1,43,4],[40,5,41,10],[40,11,41,12],[29,0,29,19],[30,0,30,20],[31,0,31,20],[32,0,32,20],[36,0,36,12],[38,0,39,0],[24,16,25,20],[1,0,5,9],[22,16,23,20],[18,1,18,12],[21,0,23,0],[21,1,21,4],[22,1,22,2],[55,21,55,22],[6,0,6,15],[6,18,6,20],[53,21,53,22],[26,3,27,4],[26,5,27,8],[26,13,27,15],[26,16,27,20],[39,11,39,12],[24,0,25,0],[54,1,54,2],[54,12,54,13],[53,14,53,15],[54,14,54,15],[24,3,25,4],[24,5,25,8],[24,13,25,15],[24,2,25,2],[21,5,22,8],[23,5,23,8],[21,9,22,12],[23,9,23,12],[21,13,21,20],[22,13,23,15],[22,3,22,4],[23,1,23,2],[23,3,23,4],[11,4,11,19],[8,4,8,5],[12,4,12,20],[13,6,13,8],[17,2,17,9],[15,18,15,20],[16,1,16,12],[15,1,15,14],[13,9,13,16],[24,1,25,1],[26,2,27,2],[26,1,27,1],[24,12,25,12],[24,9,25,10],[42,5,42,10],[42,11,42,12],[26,0,27,0],[57,0,57,9],[57,11,57,20],[24,11,25,11],[26,11,27,11],[26,9,27,10],[26,12,27,12],[39,17,39,19],[43,5,43,10],[43,11,43,12],[52,0,52,9],[52,11,52,20],[38,1,38,4],[38,5,38,10],[38,11,38,12],[38,17,38,19],[39,5,39,10],[53,0,55,0],[53,16,54,17],[53,18,54,20],[55,4,55,5],[55,6,55,9],[55,16,55,17],[53,1,53,2],[53,4,54,5],[53,6,54,9],[53,11,55,11],[53,12,53,13],[55,14,55,15],[55,18,55,20],[63,0,63,1],[63,11,63,12],[58,16,59,17],[58,18,59,20],[59,1,59,2],[59,12,59,13],[60,4,60,5],[60,6,60,9],[60,16,60,17],[60,18,60,20],[58,14,58,15],[59,14,59,15],[60,14,60,15],[58,0,60,0],[58,1,58,2],[58,4,59,5],[58,6,59,9],[58,11,60,11],[58,12,58,13]]}
[null,null,null,null,null,null,null,null,null,null,null,null,null,null,null,null,null,null,null,null,null,{"$f":"TODAY()","v":"2023-07-14"},null,null,"января","2023-01-01"]
[null,null,null,null,null,null,null,null,null,null,null,null,null,null,null,null,null,null,null,null,null,null,null,null,"февраля","2023-02-01"]
[null,null,null,null,null,null,null,null,null,null,null,null,"ОСТОРОЖНО! ДОЖДЬ! ТУМАН! ",null,null,null,null,null,null,null,null,{"$f":"DAY(V1)+1","v":15},null,null,"марта","2023-03-01"]
[null,null,null,null,null,null,null,null,null,null,null,null,null,null,null,null,null,null,null,null,null,{"$f":"DAY(V1)+2","v":16},null,null,"апреля","2023-04-01"]
[null,null,null,null,null,null,null,null,null,null,null,null,null,null,null,null,null,null,null,null,null,null,null,null,"мая","2023-05-01",null,{"$f":"TODAY()+1","v":"2023-07-15"}]
[null,null,null,null,null,null,null,null,null,null,null,null,null,null,null,null,null,null,null,null,null,null,null,null,"июня","2023-06-01"]
[null,null,null,null,null,null,null,null,null,null,null,null,null,null,null,null,null,"№",null,null,null,null,null,null,"июля","2023-07-01"]
[null,null,null,null,null,null,null,null,null,null,null,null,null,null,null,null,null,null,null,null,null,null,null,null,"августа","2022-08-01"]
[null,null,null,"«",{"$f":"IF(D25=V18,V3,IF(D25=V18,V3,IF(D25=V19,V3,IF(D25=V20,V3,IF(D25=V21,V3,IF(D25=V22,V4,))))))","v":15},null,"»",null,null,null,null,{"$f":"IF(V17=1,Y1,IF(V17=2,Y2,IF(V17=3,Y3,IF(V17=4,Y4,IF(V17=5,Y5,IF(V17=6,Y6,IF(V17=7,Y7,IF(V17=8,Y8,IF(V17=9,Y9,IF(V17=10,Y10,IF(V17=11,Y11,IF(V17=12,Y12))))))))))))","v":"июля"},{"$f":"YEAR(V1)","v":2023},"г.",null,null,null,null,null,null,null,null,null,null,"сентября","2023-09-01"]
[null,null,null,null,null,null,null,null,null,null,null,null,null,null,null,null,null,null,null,null,null,null,null,null,"октября","2023-10-01"]
["Организация",null,null,null,null,null,null,null,null,null,null,null,null,null,null,null,null,null,null,null,null,null,null,null,"ноября","2023-11-01"]
["Тип транспортного средства",null,null,null,"           Специальный (автоцистерна пожарная)",null,null,null,null,null,null,null,null,null,null,null,null,null,null,null,null,null,null,null,"декабря","2023-12-01"]
["Модель, марка транспортного средства"]
["Государственный номер транспортного средства"]
[null,null,null,null,null,null,null,null,null,null,null,null,null,null,null,null,null,null,null,null,null,null,"12:00"]
["Водитель",null,null,null,null,null,null,null,null,null,null,null,null,null,null,"Табельный номер"]
[null,"ФИО",null,null,null,null,null,null,null,null,null,null,null,null,null,null,null,null,null,null,null,{"$f":"MONTH(V1)","v":7}]
["№ Удостоверения",null,null,null,null,null,null,null,null,null,null,null,null,null,null,null,null,null,null,null,null,"08-00"]
[null,null,null,null,null,null,null,null,null,null,null,null,null,null,null,null,null,null,null,null,null,"20-00"]
["Работа водителя и автомобиля",null,null,null,null,null,null,null,null,null,null,null,null,null,null,null,null,null,null,null,null,"08- 00"]
[null,null,null,null,null,null,null,null,null,null,null,null,null,null,null,null,null,null,null,null,null,"16- 00"]
[null,"Время по графику",null,null,null,"Показания одометра",null,null,null,"Фактическое время",null,null,null,"Ответственное лицо",null,null,null,null,null,null,null,"00- 00"]
[null,"Дата",null,"Время ",null,null,null,null,null,null,null,null,null,"Подпись",null,null,"ФИО",null,null,null,null,"24- 00"]
[null,"(Число, Месяц, Год)",null,"(Часы, минуты)",null,"(км)",null,null,null,"(Часы, минуты, Число, Месяц, Год)"]
["Выезд с парковки",{"$f":"E9","v":15},{"$f":"IF(L9=Y1,Z1,IF(L9=Y2,Z2,IF(L9=Y3,Z3,IF(L9=Y4,Z4,IF(L9=Y5,Z5,IF(L9=Y6,Z6,IF(L9=Y7,Z7,IF(L9=Y8,Z8,IF(L9=Y9,Z9,IF(L9=Y10,Z10,IF(L9=Y11,Z11,IF(L9=Y12,Z12))))))))))))","v":"2023-07-01"},"20-00",null,null,null,null,null,{"$f":"D25","v":"20-00"},null,{"$f":"B25","v":15},{"$f":"C25","v":"2023-07-01"}]
[]
["Заезд на парковку",{"$f":"IF(D25=V18,B25,IF(D25=V19,V4,IF(D25=V20,B25,IF(D25=V21,B25,IF(D25=V22,B25,)))))","v":16},{"$f":"C25","v":"2023-07-01"},{"$f":"IF(D25=V18,V19,IF(D25=V19,V18,IF(D25=V20,V21,IF(D25=V21,V23,IF(D25=V22,V20)))))","v":"08-00"},null,null,null,null,null,{"$f":"D27","v":"08-00"},null,{"$f":"B27","v":16},{"$f":"C27","v":"2023-07-01"}]
[]
[]
[]
["Задание водителю"]
["Охрана объектов АО \"Востсибнефтегаз\""]
[]
[]
["Особые отметки"]
[]
["Движение горючего"]
[]
["Марка ГСМ","Заправка, (л.)",null,null,null,"Остаток, (л.)",null,null,null,null,null,"Остаток, (л.)"]
[null,"ТЗП",null,null,null,"на начало",null,null,null,null,null," на конец"]
[]
[]
["Ответственный","Оператор ТЗП",null,null,null,"Контролер технического состояния транспортного средства",null,null,null,null,null,"Контролер технического состояния транспортного средства"]
["Подпись"]
[]
["Водительское удостоверение проверил, задание выдал, выдать горючего",null,null,null,null,null,null,null,null,null,null,null,null,null,null,null,null,null,null,null,"литров"]
[null,null,null,null,null,null,null,null,null,null,null,null,"прописью"]
["Диспетчер ",null,null,{"$f":"Q25","v":0}]
[null,null,null,"ФИО",null,null,null,null,null,null,null,"Подпись"]
[]
[]
[]
["Проведение предрейсового медицинского осмотра водителя",null,null,null,null,null,null,null,null,null,null,"Проведение послерейсового медицинского осмотра водителя"]
["Медицинский работник","Дата ",null,"Время","Подпись",null,"ФИО",null,null,null,null,"Медицинский работник","Дата ",null,"Время",null,"Подпись",null,"ФИО"]
[null,"(Число, Месяц, Год)",null,"(Часы, минуты)",null,null,null,null,null,null,null,null,"(Число, Месяц, Год)",null,"(Часы, минуты)"]
[null,{"$f":"IF(D25=V18,B27,IF(D25=V19,V3,IF(D25=V20,B27,IF(D25=V21,B27,IF(D25=V22,V3)))))","v":15},{"$f":"C61","v":"2023-07-01"},null,null,null,null,null,null,null,null,null,{"$f":"IF(D25=V18,B27,IF(D25=V19,B27,IF(D25=V20,B27,IF(D25=V21,V4,IF(D25=V22,B27)))))","v":16},{"$f":"N61","v":"2023-07-01"}]
[]
["Контроль  технического состояния транспортного средства пройден, выпуск на линию разрешён",null,null,null,null,null,null,null,null,null,null,"Контроль  технического состояния транспортного средства пройден"]
["Контролер технического состояния транспортного средства","Дата ",null,"Время","Подпись",null,"ФИО",null,null,null,null,"Контролер технического состояния транспортного средства","Дата ",null,"Время",null,"Подпись",null,"ФИО"]
[null,"(Число, Месяц, Год)",null,"(Часы, минуты)",null,null,null,null,null,null,null,null,"(Число, Месяц, Год)",null,"(Часы, минуты)"]
[null,{"$f":"B56","v":15},{"$f":"C25","v":"2023-07-01"},null,null,null,null,null,null,null,null,null,{"$f":"L27","v":16},{"$f":"C61","v":"2023-07-01"}]
[]
[]
["Водитель принял транспортное средство",null,null,null,null,null,null,null,null,null,null,"Водитель сдал транспортное средство"]
[null,null,"ФИО",null,null,null,null,null,"Подпись",null,null,null,null,"ФИО",null,null,null,null,null,"Подпись"]

{"sheet":"ИД","index":5,"n_rows":0,"n_cols":0,"rows_kept":0,"cut":false,"hidden":true,"merged":[]}